Cogmind - Beta 14 @@@ ROGUE MODE // 2024.08.17 @ 01:07:11 Player: porkhorse Result: Destroyed by G-47 Trooper with Particle Gun Performance ------------- Evolutions (0) 0 Regions Visited (1) 200 Robots Destroyed (34) 170 Value Destroyed (782) 782 Prototype IDs (2) 40 Alien Tech Used (0) 0 Bonus (70) 70 TOTAL SCORE: 1262 Bonus ------- High Alert Combat Kills 70 Cogmind --------- Core Integrity 0/250 Matter 131/300 Energy 118/125 System Corruption 0% Temperature Cool (20) Movement Hovering (56) Location -10/Materials Parts ------- > --- POWER (1) -------- Light Ion Engine > --- PROPULSION (2) --- Hover Unit Hover Unit > --- UTILITY (2) ------ Small Storage Unit Weight Redist. System > --- WEAPON (2) ------- Light Assault Rifle Light Cannon > --- INVENTORY (8) ---- Improved Ion Engine Aluminum Leg Aluminum Leg Medium Matter Pod (100) Tractor Beam Beam Cannon Grenade Launcher Mace Peak State ------------ > --- POWER ------------ Light Nuclear Core > --- PROPULSION ------- Aluminum Leg Aluminum Leg > --- UTILITY ---------- Small Storage Unit Improved Terrain Scanner > --- WEAPON ----------- Assault Rifle Assault Rifle > --- INVENTORY -------- Ion Engine Aluminum Leg Aluminum Leg Medium Matter Pod Tractor Beam Assault Rifle Grenade Launcher Mining Laser [Rating: 11] Favorites ----------- Power Ion Engine Engine Ion Engine Power Core Light Nuclear Core Propulsion Aluminum Leg Leg Aluminum Leg Hover Unit Hover Unit Utility Small Storage Unit Device Tractor Beam Storage Small Storage Unit Weapon Assault Rifle Energy Cannon Beam Cannon Ballistic Gun Assault Rifle Ballistic Cannon Light Cannon Launcher Grenade Launcher Special Weapon Mining Laser Impact Weapon Mace Build | -11 -10 ------- Run | Yrd Mat Slots Evolved . | . . Power . | . . Propulsion . | . . Utility . | . . Weapon . | . . Parts Attached 52 | 7 45 Power 6 | 1 5 Engine 4 | 1 3 Core 2 | . 2 Reactor . | . . Propulsion 11 | 2 9 Treads . | . . Leg 9 | 2 7 Wheel . | . . Hover 2 | . 2 Flight . | . . Utility 8 | 2 6 Device 7 | 1 6 Storage 1 | 1 . Processor . | . . Hackware . | . . Protection . | . . Artifact . | . . Weapon 27 | 2 25 Energy Gun . | . . Energy Cannon 2 | . 2 Ballistic Gun 13 | 2 11 Ballistic Cannon 2 | . 2 Launcher 4 | . 4 Special Weapon 3 | . 3 Impact Weapon 3 | . 3 Slashing Weapon . | . . Piercing Weapon . | . . Special Melee Weapon . | . . Unidentified Prototypes . | . . Parts Lost 4 | . 4 Power 1 | . 1 Propulsion . | . . Utility 1 | . 1 Weapon 2 | . 2 Highest Loss Streak 3 | . 3 To Critical Strikes . | . . Average Slot Usage (%) 97 | . 97 Engine 11 | . 11 Core 2 | . 2 Leg 21 | . 21 Hover 5 | . 5 Device 13 | . 13 Storage 14 | . 14 Energy Cannon 5 | . 5 Ballistic Gun 18 | . 18 Launcher 1 | . 1 Peak Build Rating 11 | 9 11 Average Rating 7 | 6 8 On Entrance 4 | . 9 Naked Turns . | . . Heaviest Build 17 | 15 17 Greatest Support 20 | 20 20 Greatest Overweight (x) 3 | 1 3 Average Overweight (x) . | . . Largest Inventory Capacity 8 | 8 8 Average Capacity 7 | 7 8 Most Carried 8 | 4 8 Average Carried 6 | 2 6 Final Capacity 8 | 8 8 Final Carried 8 | 4 8 Class Distribution -------------------- 68% | Mutant 31% | Scavenger-Mutant Dominant Class ---------------- Mutant | -10/Materials Resources | -11 -10 ----------- Run | Yrd Mat Matter Collected 1029 | 392 637 Remotely 455 | . 455 Salvage Created 1007 | 165 842 Parts 66 | 9 57 Haulers Intercepted 1 | . 1 Recyclers Shooed 1 | . 1 Parts Field Recycled . | . . Retrieved Matter . | . . Parts Self-Destructed . | . . Prevented . | . . Kills | -11 -10 ------- Run | Yrd Mat Combat Hostiles Destroyed 24 | . 24 Guns 10 | . 10 Cannons 6 | . 6 AOE 8 | . 8 Classes Destroyed 9 | 3 6 Worker 2 | 1 1 Builder 1 | . 1 Tunneler 2 | 2 . Hauler 1 | . 1 Recycler 2 | 1 1 Operator 1 | . 1 Watcher 1 | . 1 Swarmer 6 | . 6 Grunt 18 | . 18 Best Kill Streak 5 | 3 5 Combat Bots Only 4 | . 4 Max Kills in Single Turn 2 | 1 2 Gunslinging . | . . Exploded 2 | . 2 Melee . | . . Uniques/NPCs Destroyed . | . . Combat | -11 -10 -------- Run | Yrd Mat Hostile Shots Fired 129 | . 129 Missed 34 | . 34 Damage Taken 1085 | . 1085 Core 253 | . 253 Absorbed by Shields . | . . Core Remaining (%) 100 | 100 . Volleys Fired 95 | 6 89 Largest 2 | 2 2 Hottest 120 | 40 120 Shots Fired 181 | 12 169 Gun 124 | 12 112 Cannon 44 | . 44 Launcher 11 | . 11 Special 2 | . 2 Kinetic 125 | 12 113 Thermal 45 | . 45 Explosive 11 | . 11 Electromagnetic . | . . Robot Hit Streak 6 | 2 6 Robot Miss Streak 4 | 2 4 Penetration Max . | . . Secondary Targets 1 | . 1 Max Gunslinging Chain 1 | . 1 Shots Hit Robots 95 | 6 89 Core Hits 56 | 5 51 Critical Kills . | . . Critical Parts Destroyed 1 | . 1 Critical Strikes 1 | . 1 Destroy 1 | . 1 Melee Attacks 10 | . 10 Impact 10 | . 10 Slashing . | . . Piercing . | . . Sneak Attacks . | . . Combat Hostiles . | . . Follow-up Attacks . | . . Damage Inflicted 2062 | 109 1953 Guns 815 | 109 706 Cannons 384 | . 384 Explosions 844 | . 844 Melee . | . . Ramming 19 | . 19 Kinetic 831 | 109 722 Thermal 368 | . 368 Explosive 844 | . 844 Electromagnetic . | . . Impact . | . . Slashing . | . . Piercing . | . . Highest Corruption . | . . Average Corruption . | . . Corruption Purged . | . . Corruption Blocked . | . . Overload Shots . | . . Overflow Damage 12 | . 12 Projectiles 1 | . 1 Explosions 11 | . 11 Melee . | . . Knockbacks . | . . Impact . | . . Kinetic . | . . Secondary . | . . Self-Inflicted Damage 53 | . 53 Shots 1 | . 1 Rammed . | . . Targets Rammed 5 | . 5 Kicked 5 | . 5 Crushed . | . . Highest Temperature 300 | . 300 Average Temperature 76 | . 76 Received Heat Transfer 390 | . 390 Effects 2 | . 2 Energy Bleed 1 | . 1 Damage (minor) 1 | . 1 Siege Activations . | . . Robots Corrupted . | . . Combat Hostiles . | . . Parts Fried . | . . Impact Corruptions . | . . Robots Melted . | . . Combat Hostiles . | . . Parts Melted 1 | . 1 Heat Transferred 777 | . 777 Parts Sabotaged . | . . Parts Stolen . | . . Parts Stripped . | . . Power Chain Reactions . | . . Alert | -11 -10 ------- Run | Yrd Mat Peak Influence 589 | 20 589 Initial 13 | . 13 Average 328 | 10 370 Maximum Alert Level 2 | . 2 Low Security (%) 34 | 100 26 Level 1 15 | . 17 Level 2 50 | . 56 Level 3 . | . . Level 4 . | . . Level 5 . | . . High Security . | . . Max Security . | . . Squads Dispatched 8 | . 8 Investigation 7 | . 7 Extermination . | . . Reinforcement 1 | . 1 Assault . | . . Garrison . | . . Intercept . | . . Searches Triggered . | . . Construction Impeded . | . . Haulers Reinforced . | . . Active Scanning Responses . | . . Cargo Convoy Interrupts . | . . Stealth | -11 -10 --------- Run | Yrd Mat Distress Signals 1 | . 1 Communications Jammed . | . . Distress Signals . | . . Times Spotted 45 | . 45 Peak Tracking Total 5 | . 5 Tactical Retreats 7 | . 7 Traps | -11 -10 ------- Run | Yrd Mat Traps Triggered 6 | . 6 Indirectly . | . . Trap Hack Attempts . | . . Triggered . | . . Disarmed . | . . Reprogrammed 6 | . 6 Reused 1 | . 1 Traps Extracted . | . . Installed . | . . Triggered 1 | . 1 Machines | -11 -10 ---------- Run | Yrd Mat Machines Disabled 3 | . 3 Max in Single Turn 2 | . 2 Machines Repaired . | . . Machines Dismantled . | . . Machines Sabotaged . | . . Overloaded Fab Kills . | . . Hacking | -11 -10 --------- Run | Yrd Mat Machines Accessed 7 | . 7 Terminals 5 | . 5 Fabricators . | . . Repair Stations . | . . Recycling Units 2 | . 2 Scanalyzers . | . . Garrison Access . | . . Total Hacks 23 | . 23 Successful 12 | . 12 Failed 11 | . 11 Catastrophic 5 | . 5 Database Lockouts . | . . Manual 8 | . 8 Terminals 12 | . 12 Fabricators . | . . Repair Stations . | . . Recycling Units 11 | . 11 Scanalyzers . | . . Garrison Access . | . . Terminal Hacks 4 | . 4 Prototype ID Bank 1 | . 1 Terminal Index 1 | . 1 Locate Traps 1 | . 1 Reprogram Traps 1 | . 1 Fabricator Hacks . | . . Repair Station Hacks . | . . Recycling Unit Hacks 5 | . 5 Report Inventory 3 | . 3 Retrieve Components 2 | . 2 Scanalyzer . | . . Garrison Access Hacks . | . . Unauthorized Hacks 3 | . 3 Terminals . | . . Fabricators . | . . Repair Stations . | . . Recycling Units 3 | . 3 Monitor 2 | . 2 Mask 1 | . 1 Scanalyzers . | . . Garrison Access . | . . Data Cores Recovered . | . . Used . | . . Hacking Detections 7 | . 7 Full Trace Events 6 | . 6 Feedback Events . | . . Feedback Blocked . | . . Robot Schematics Acquired . | . . Robots Built . | . . Authchips . | . . Time . | . . Total Robot Build Rating . | . . Part Schematics Acquired . | . . Parts Built . | . . Authchips . | . . Time . | . . Total Part Build Rating . | . . Parts Repaired . | . . Time . | . . Parts Recycled . | . . Recycled Matter . | . . Retrieved Matter . | . . Retrieved Components 9 | . 9 Parts Scanalyzed . | . . Part Schematics Acquired . | . . Parts Damaged . | . . Bothacking | -11 -10 ------------ Run | Yrd Mat Used RIF Installer . | . . Robots Hacked . | . . Non-combat . | . . Combat . | . . Robot Hacks Applied . | . . Relay Couplers Released . | . . Fabnet Peak Effective % . | . . Robots Rewired . | . . Allies Hacked . | . . Hacks Repelled . | . . Allies | -11 -10 -------- Run | Yrd Mat Total Allies . | . . Largest Group . | . . Highest-Rated Group . | . . Highest-Rated Ally . | . . Total Orders . | . . Ally Attacks . | . . Total Damage . | . . Kills . | . . Allies Corrupted . | . . Allies Melted . | . . Intel | -11 -10 ------- Run | Yrd Mat Robot Analysis Total . | . . Derelict Logs Recovered . | . . Drone Launches . | . . Drone Recoveries . | . . Exploration | -11 -10 ------------- Run | Yrd Mat Turns Passed 1496 | 172 1324 Spaces Moved 1087 | 136 951 Core 44 | 37 7 Treads . | . . Legs 677 | 99 578 Wheels . | . . Hover 366 | . 366 Flight . | . . Fastest Speed 50 | 50 56 Average Speed 96 | 102 95 Slowest Speed 200 | 120 200 Overloaded Moves . | . . Propulsion Burnouts . | . . Robots Hopped . | . . Cave-ins Triggered . | . . Exploration Rate (%) 47 | 7 88 Regions Visited 1 Branch Regions . Pre-discovered Areas . | . . Known Exits Taken . | . . Unknown Exits Taken 1 | 1 . Scrap Searched . | . . Spaces Dug 9 | . 9 Terrain Destroyed 100 | . 100 Melee 8 | . 8 Projectile 2 | . 2 AOE 90 | . 90 Terrain Rammed . | . . Walls Destroyed . | . . Machines Disabled . | . . Actions | -11 -10 --------- Run | Yrd Mat Total 1324 | 153 1171 Wait 51 | . 51 Move 1086 | 135 951 Hop . | . . Pick Up 15 | 5 10 Fast Attach 13 | 6 7 Attach 5 | 1 4 Detach . | . . Swap 34 | . 34 Drop 10 | . 10 Fire 95 | 6 89 Melee 10 | . 10 Ram . | . . Kick 5 | . 5 Crush . | . . Escape Stasis . | . . Rewire . | . . Trap . | . . Miscellaneous . | . . Route ------- -11/Scrapyard -10/Materials (discovered 5 exits: [*Mat x3] / [*Min x2]) History --------- Turn | Location | Event 8 | -11/Scrapyard | Discovered new exit (range 15) 173 | -11/Scrapyard | Entered Materials 335 | -10/Materials | Build established: Mutant 404 | -10/Materials | Discovered new exit (range 12) 514 | -10/Materials | Discovered new exit (range 13) 609 | -10/Materials | Core integrity fell below 50% 644 | -10/Materials | Lost 3 parts (1p2w) 700 | -10/Materials | Discovered new exit (range 13) 907 | -10/Materials | Discovered new exit (range 16) 1007 | -10/Materials | Core integrity fell below 20% 1010 | -10/Materials | Discovered new exit (range 13) 1497 | -10/Materials | Destroyed by G-47 Trooper with Particle Gun Last Messages --------------- 01255_ Dropped Aluminum Leg. 01256_ Acquired Imp. Ion Engine. 01275_ Connecting with Terminal... 01275_ ALERT: Suspicious activity at Terminal M002. Dispatching Investigation squad. 01292_ The unstable cave ceiling collapses. 01312_ R-06 Scavenger collects Flight Unit. 01316_ Acquired 30 matter. 01377_ Acquired Weight Redist. System. 01397_ Acquired Lgt. Cannon. 01407_ >> MONITOR: Recycling Unit M001 accepting Lgt. Ion Engine (100%). 01413_ >> MONITOR: Recycling Unit M001 accepting Flight Unit (95%). 01416_ >> MONITOR: Recycling Unit M001 accepting Aluminum Leg (14%). 01465_ >> MONITOR: Recycling Unit M002 accepting Flight Unit (85%). 01468_ >> MONITOR: Recycling Unit M002 accepting Ion Engine (100%). 01471_ >> MONITOR: Recycling Unit M002 accepting Flight Unit (100%). 01474_ >> MONITOR: Recycling Unit M002 accepting Flight Unit (80%). 01481_ Triggered Explosive Trap. 01481_ An explosion rips through the floor. Map ----- +----------------------------------------------------+ | #???#######"##?????????# = # | | #?????????# #???#??????# # """*= | | " #?#?????###"##### ?????########### "Y"*= | | " ######### ##+###???????????# =[ | | " ################/### | | * ** < ^ ^^= ** | | * ^ =!= =< | | ###### ####+## # ^ """ ^ "" = | | #????# #?# # "!"|" # """ "" #[ | | #####??# #?# #""!"|""# """ "T | | ######?# #?# ######### [ "" # | | ?# #?# + "" #"" | | # #?# #######+###### ### #"T | | # ### ##???? ????# #?# #"" | | + #?# ! #?##??"""????# #?# " # | | # #######??? """""???# #?# ^ "" ##### | | ######## ##?#??#?#??"""""???# #?# "" #???? | | #######! #????#?#? ??# #?# """ #???? | | #?#?????? ??# #?# "" #???? | | ## ######### ??# #?# """ #???? | | ?# #####+##### #?# """ #???? | | ?###### ### #?# "?" #???? | | ??????### ###?# #?? ?? #???? | | ?##?????# #?#?# #?? ?? ????? | | ????????#[#???# ###+############# ! ????????? | | ##???####+###### ## g@ + ?????? | | #????# = * =# ## """ ######## ?????????? | | #??#?# # ## %""" #???????????????????? | | ###### * %+ ## """ #???????????????????? | | ## [ # ## """ #???????????????????? | | ## """" # ## """ #???????????????????? | | +% """" # ## #???????????????????? | | ## """" ###### #???????????????????? | | # ### #?##?# #???????????????????? | | # #?###########????######+###???????????????????? | | # #??#########??????????# #???#######???????????? | | # ##??# ! ############ ##### ######??????? | | # ##### ######## | | | | | | ######## [ ######## | | ?????#?# #############################??????? | | ##???#??#######??????????????????????????????????? | | ??#??????????????????????????????????????????????? | | | | | | | | | | | | | +----------------------------------------------------+ Best States ------------- Heat Dissipation 25 Energy Generation 14 Energy Capacity 250 Matter Stores 300 Matter Capacity 300 Sight Range 16 Terrain Scan Range 16 Terrain Scan Density 10 Additional Mass Support 6 Evasion (%) 55 Item Schematics ----------------- None Robot Schematics ------------------ None Fabricated ------------ Nothing Alien Tech Used ----------------- None Achievements -------------- None Challenges ------------ None Game ------ Seed MobileXenonDoublenader Manual? 0 Play Time 00:20:28 Cumulative 24.4 hours Start 2024.08.17 @ 00:48:42 End 2024.08.17 @ 01:07:11 Sessions 1 Manual Loads 0 Difficulty Rogue Special Mode None Game No. 26 Rogue 7 Adventurer 19 Explorer 0 Win Type - Total 0 Types 0/0/0/0/0/0/0/0/0 Lore% 7 Gallery% 21 Achievement% 17 Wizard Run 0 Options --------- Layout 0 ASCII 0 Keyboard 1 Movement Arrows Keybinds 0 Fullscreen 2 Font 18/SmallcapsGlow Map View 76x50 Zoom Use 0% Tactical HUD 1 Map Filters NONE Filters NONE Steam 1 RUN: a0bead13-cb9b-494e-94f7-5fea33e3a02e